[Event "Titled Tuesday Blitz March 28 Early 2023"]
[White "Wei, Yi"]
[Black "Vlassov, Nikolai"]
[WhiteFideId "8603405"]
[BlackFideId "4103360"]
[WhiteElo "2686"]
[BlackElo "2324"]
[Result "1-0"]
[Round "02"]
[TimeControl "180+2"]
[Date "2023.03.28"]
[WhiteClock "0:01:07"]
[BlackClock "0:00:16"]

1. b3 {[%clk 0:02:58]}  e5 {[%clk 0:02:40]} 2. Bb2 {[%clk 0:02:57]}  Nc6 {[%clk 0:02:40]} 3. e3 {[%clk 0:02:57]}  a6 {[%clk 0:02:40]} 4. Nf3 {[%clk 0:02:54]}  e4 {[%clk 0:02:38]} 5. Nd4 {[%clk 0:02:52]}  Qf6 {[%clk 0:02:36]} 6. d3 {[%clk 0:02:45]}  d5 {[%clk 0:02:26]} 7. Nd2 {[%clk 0:02:41]}  exd3 {[%clk 0:02:19]} 8. Bxd3 {[%clk 0:02:40]}  Bc5 {[%clk 0:02:17]} 9. N2f3 {[%clk 0:02:25]}  Nge7 {[%clk 0:02:10]} 10. O-O {[%clk 0:02:23]}  Bg4 {[%clk 0:02:06]} 11. Be2 {[%clk 0:01:51]}  O-O-O {[%clk 0:01:50]} 12. Rb1 {[%clk 0:01:37]}  Nxd4 {[%clk 0:01:26]} 13. Nxd4 {[%clk 0:01:36]}  Bxe2 {[%clk 0:01:24]} 14. Qxe2 {[%clk 0:01:34]}  Qg6 {[%clk 0:01:21]} 15. Qf3 {[%clk 0:01:30]}  Rhe8 {[%clk 0:01:17]} 16. Rfd1 {[%clk 0:01:25]}  c6 {[%clk 0:01:06]} 17. Rbc1 {[%clk 0:01:25]}  Rd6 {[%clk 0:00:37]} 18. c4 {[%clk 0:01:20]}  dxc4 {[%clk 0:00:29]} 19. Rxc4 {[%clk 0:01:20]}  Bb6 {[%clk 0:00:26]} 20. Rdc1 {[%clk 0:01:10]}  Nd5 {[%clk 0:00:17]} 21. Ba3 {[%clk 0:01:07]}  Rf6 {[%clk 0:00:16]} 22. Qxd5 {[%clk 0:01:07]} 1-0


[Site "https://www.chess.com"]

[Event "Titled Tuesday Blitz March 28 Early 2023"]
[White "De Silva, L M S T"]
[Black "Sarana, Alexey"]
[WhiteFideId "9953698"]
[BlackFideId "24133795"]
[WhiteElo "2403"]
[BlackElo "2714"]
[Result "0-1"]
[Round "02"]
[TimeControl "180+2"]
[Date "2023.03.28"]
[WhiteClock "0:00:08"]
[BlackClock "0:00:32"]

1. e4 {[%clk 0:03:00]}  c5 {[%clk 0:02:53]} 2. Nf3 {[%clk 0:03:00]}  d6 {[%clk 0:02:54]} 3. Bb5+ {[%clk 0:03:00]}  Bd7 {[%clk 0:02:54]} 4. Bxd7+ {[%clk 0:03:00]}  Nxd7 {[%clk 0:02:55]} 5. O-O {[%clk 0:02:59]}  Ngf6 {[%clk 0:02:55]} 6. Qe2 {[%clk 0:03:00]}  e6 {[%clk 0:02:54]} 7. c3 {[%clk 0:03:00]}  Be7 {[%clk 0:02:54]} 8. d4 {[%clk 0:03:01]}  O-O {[%clk 0:02:54]} 9. Rd1 {[%clk 0:03:00]}  cxd4 {[%clk 0:02:55]} 10. cxd4 {[%clk 0:03:00]}  b5 {[%clk 0:02:55]} 11. Nbd2 {[%clk 0:02:58]}  Qb6 {[%clk 0:02:53]} 12. Nf1 {[%clk 0:02:57]}  Rac8 {[%clk 0:02:52]} 13. Ng3 {[%clk 0:02:56]}  Rfd8 {[%clk 0:02:52]} 14. h3 {[%clk 0:02:53]}  Nf8 {[%clk 0:02:48]} 15. Be3 {[%clk 0:02:53]}  Qb7 {[%clk 0:02:47]} 16. Qd3 {[%clk 0:02:46]}  Ng6 {[%clk 0:02:45]} 17. Rac1 {[%clk 0:02:46]}  b4 {[%clk 0:02:41]} 18. Rxc8 {[%clk 0:02:40]}  Rxc8 {[%clk 0:02:41]} 19. Rc1 {[%clk 0:02:41]}  Rxc1+ {[%clk 0:02:39]} 20. Bxc1 {[%clk 0:02:41]}  a5 {[%clk 0:02:35]} 21. Qc2 {[%clk 0:02:17]}  h6 {[%clk 0:02:32]} 22. Bd2 {[%clk 0:02:15]}  Nf8 {[%clk 0:02:29]} 23. a3 {[%clk 0:02:14]}  d5 {[%clk 0:02:23]} 24. e5 {[%clk 0:02:09]}  Ne4 {[%clk 0:02:23]} 25. Nxe4 {[%clk 0:01:54]}  dxe4 {[%clk 0:02:24]} 26. Ne1 {[%clk 0:01:48]}  Qd5 {[%clk 0:02:08]} 27. axb4 {[%clk 0:01:47]}  Bxb4 {[%clk 0:01:58]} 28. Bxb4 {[%clk 0:01:47]}  axb4 {[%clk 0:01:59]} 29. Qd2 {[%clk 0:01:48]}  Qb3 {[%clk 0:01:48]} 30. Qc2 {[%clk 0:01:35]}  Qd5 {[%clk 0:01:47]} 31. Qd2 {[%clk 0:01:13]}  Qb3 {[%clk 0:01:41]} 32. Qc2 {[%clk 0:01:11]}  Qa2 {[%clk 0:01:41]} 33. Qc1 {[%clk 0:01:02]}  b3 {[%clk 0:01:24]} 34. g3 {[%clk 0:01:01]}  Qa4 {[%clk 0:00:50]} 35. Qc3 {[%clk 0:00:54]}  Ng6 {[%clk 0:00:40]} 36. Ng2 {[%clk 0:00:53]}  Qa1+ {[%clk 0:00:40]} 37. Kh2 {[%clk 0:00:44]}  Qf1 {[%clk 0:00:33]} 38. Qxb3 {[%clk 0:00:40]}  Qxf2 {[%clk 0:00:33]} 39. Qe3 {[%clk 0:00:18]}  Qc2 {[%clk 0:00:32]} 40. b4 {[%clk 0:00:17]}  Ne7 {[%clk 0:00:32]} 41. b5 {[%clk 0:00:16]}  Nd5 {[%clk 0:00:33]} 42. Qf4 {[%clk 0:00:08]}  Nxf4 {[%clk 0:00:32]} 0-1


[Site "https://www.chess.com"]

[Event "Titled Tuesday Blitz March 28 Early 2023"]
[White "Tatarinov, Dmitry"]
[Black "Anton Guijarro, David"]
[WhiteFideId "24160067"]
[BlackFideId "2285525"]
[WhiteElo "2326"]
[BlackElo "2618"]
[Result "1-0"]
[Round "02"]
[TimeControl "180+2"]
[Date "2023.03.28"]
[WhiteClock "0:00:19"]
[BlackClock "0:00:16"]

1. Nf3 {[%clk 0:02:58]}  Nf6 {[%clk 0:02:59]} 2. c4 {[%clk 0:02:59]}  e6 {[%clk 0:02:55]} 3. d4 {[%clk 0:02:59]}  d5 {[%clk 0:02:55]} 4. g3 {[%clk 0:02:59]}  Bb4+ {[%clk 0:02:54]} 5. Bd2 {[%clk 0:02:59]}  a5 {[%clk 0:02:54]} 6. Bg2 {[%clk 0:02:59]}  O-O {[%clk 0:02:54]} 7. O-O {[%clk 0:03:00]}  Nbd7 {[%clk 0:02:53]} 8. Qc2 {[%clk 0:02:56]}  c6 {[%clk 0:02:48]} 9. Bg5 {[%clk 0:02:52]}  Be7 {[%clk 0:02:47]} 10. Nbd2 {[%clk 0:02:48]}  h6 {[%clk 0:02:38]} 11. Bxf6 {[%clk 0:02:42]}  Nxf6 {[%clk 0:02:36]} 12. e4 {[%clk 0:02:42]}  a4 {[%clk 0:02:36]} 13. Rfd1 {[%clk 0:02:17]}  Qa5 {[%clk 0:02:33]} 14. e5 {[%clk 0:02:10]}  Nd7 {[%clk 0:02:31]} 15. h4 {[%clk 0:02:08]}  Rd8 {[%clk 0:02:13]} 16. Rac1 {[%clk 0:02:04]}  Nf8 {[%clk 0:02:10]} 17. h5 {[%clk 0:02:03]}  b6 {[%clk 0:02:02]} 18. cxd5 {[%clk 0:01:56]}  cxd5 {[%clk 0:02:03]} 19. a3 {[%clk 0:01:53]}  Bd7 {[%clk 0:01:54]} 20. Nb1 {[%clk 0:01:51]}  Rdc8 {[%clk 0:01:53]} 21. Qd2 {[%clk 0:01:50]}  Qxd2 {[%clk 0:01:50]} 22. Nfxd2 {[%clk 0:01:51]}  b5 {[%clk 0:01:49]} 23. Nc3 {[%clk 0:01:45]}  b4 {[%clk 0:01:49]} 24. axb4 {[%clk 0:01:45]}  Bxb4 {[%clk 0:01:50]} 25. Ndb1 {[%clk 0:01:42]}  Rab8 {[%clk 0:01:47]} 26. Bf1 {[%clk 0:01:39]}  Bxc3 {[%clk 0:01:27]} 27. bxc3 {[%clk 0:01:30]}  Bb5 {[%clk 0:01:27]} 28. Bxb5 {[%clk 0:01:09]}  Rxb5 {[%clk 0:01:28]} 29. c4 {[%clk 0:01:10]}  Rxc4 {[%clk 0:01:07]} 30. Rxc4 {[%clk 0:01:10]}  dxc4 {[%clk 0:01:08]} 31. Na3 {[%clk 0:01:04]}  Rb4 {[%clk 0:00:57]} 32. Rc1 {[%clk 0:00:52]}  g6 {[%clk 0:00:49]} 33. hxg6 {[%clk 0:00:50]}  Nxg6 {[%clk 0:00:48]} 34. Nxc4 {[%clk 0:00:50]}  Ne7 {[%clk 0:00:27]} 35. Nd6 {[%clk 0:00:50]}  Nd5 {[%clk 0:00:24]} 36. Rc8+ {[%clk 0:00:50]}  Kg7 {[%clk 0:00:24]} 37. Ra8 {[%clk 0:00:49]}  Rxd4 {[%clk 0:00:20]} 38. Ra7 {[%clk 0:00:49]}  Kg6 {[%clk 0:00:20]} 39. Rxf7 {[%clk 0:00:45]}  Nc3 {[%clk 0:00:17]} 40. Ra7 {[%clk 0:00:44]}  Rd5 {[%clk 0:00:15]} 41. f4 {[%clk 0:00:21]}  Rd2 {[%clk 0:00:15]} 42. Ra6 {[%clk 0:00:19]}  h5 {[%clk 0:00:14]} 43. Kf1 {[%clk 0:00:18]}  Ra2 {[%clk 0:00:14]} 44. Kg1 {[%clk 0:00:17]}  a3 {[%clk 0:00:14]} 45. Nc4 {[%clk 0:00:18]}  Ra1+ {[%clk 0:00:15]} 46. Kg2 {[%clk 0:00:18]}  a2 {[%clk 0:00:16]} 47. Rxe6+ {[%clk 0:00:17]}  Kf5 {[%clk 0:00:16]} 48. Ra6 {[%clk 0:00:17]}  Rc1 {[%clk 0:00:15]} 49. Ne3+ {[%clk 0:00:17]}  Ke4 {[%clk 0:00:15]} 50. e6 {[%clk 0:00:18]}  Nd5 {[%clk 0:00:13]} 51. Nxd5 {[%clk 0:00:16]}  a1=Q {[%clk 0:00:14]} 52. Rxa1 {[%clk 0:00:17]}  Rxa1 {[%clk 0:00:14]} 53. e7 {[%clk 0:00:18]}  Ra8 {[%clk 0:00:15]} 54. e8=Q+ {[%clk 0:00:17]}  Rxe8 {[%clk 0:00:15]} 55. Nf6+ {[%clk 0:00:18]}  Kf5 {[%clk 0:00:15]} 56. Nxe8 {[%clk 0:00:19]}  Kg4 {[%clk 0:00:16]} 57. Nf6+ {[%clk 0:00:19]} 1-0


[Site "https://www.chess.com"]

[Event "Titled Tuesday Blitz March 28 Early 2023"]
[White "Demchenko, Anton"]
[Black "wqws"]
[WhiteFideId "4160258"]
[WhiteElo "2545"]
[BlackElo "2658"]
[Result "1-0"]
[Round "02"]
[TimeControl "180+2"]
[Date "2023.03.28"]
[WhiteClock "0:00:29"]
[BlackClock "0:00:17"]

1. e4 {[%clk 0:02:58]}  e5 {[%clk 0:02:59]} 2. Nf3 {[%clk 0:02:57]}  Nf6 {[%clk 0:02:59]} 3. Nxe5 {[%clk 0:02:57]}  d6 {[%clk 0:03:00]} 4. Nf3 {[%clk 0:02:58]}  Nxe4 {[%clk 0:03:00]} 5. d4 {[%clk 0:02:59]}  d5 {[%clk 0:03:00]} 6. Bd3 {[%clk 0:03:00]}  Bd6 {[%clk 0:03:01]} 7. O-O {[%clk 0:03:01]}  O-O {[%clk 0:03:01]} 8. c4 {[%clk 0:03:01]}  c6 {[%clk 0:03:01]} 9. cxd5 {[%clk 0:03:01]}  cxd5 {[%clk 0:03:01]} 10. Nc3 {[%clk 0:03:02]}  Nxc3 {[%clk 0:02:58]} 11. bxc3 {[%clk 0:03:03]}  Bg4 {[%clk 0:02:58]} 12. Bb1 {[%clk 0:03:02]}  Nd7 {[%clk 0:02:54]} 13. Qd3 {[%clk 0:02:47]}  g6 {[%clk 0:02:51]} 14. h3 {[%clk 0:02:26]}  Bf5 {[%clk 0:02:48]} 15. Qb5 {[%clk 0:02:06]}  Bxb1 {[%clk 0:02:46]} 16. Rxb1 {[%clk 0:02:07]}  Nb6 {[%clk 0:02:46]} 17. a4 {[%clk 0:01:57]}  Rb8 {[%clk 0:02:35]} 18. Kh1 {[%clk 0:01:49]}  Bc7 {[%clk 0:02:08]} 19. Ne5 {[%clk 0:01:13]}  f6 {[%clk 0:01:56]} 20. Nd3 {[%clk 0:01:09]}  a6 {[%clk 0:01:49]} 21. Qb3 {[%clk 0:01:06]}  Nc4 {[%clk 0:01:47]} 22. Re1 {[%clk 0:01:05]}  b5 {[%clk 0:01:38]} 23. axb5 {[%clk 0:01:02]}  Rxb5 {[%clk 0:01:37]} 24. Qa2 {[%clk 0:01:01]}  Rxb1 {[%clk 0:01:35]} 25. Qxb1 {[%clk 0:01:02]}  Re8 {[%clk 0:01:01]} 26. Rxe8+ {[%clk 0:01:01]}  Qxe8 {[%clk 0:01:02]} 27. Qb7 {[%clk 0:01:01]}  Qf7 {[%clk 0:00:47]} 28. Bh6 {[%clk 0:00:49]}  Bd6 {[%clk 0:00:35]} 29. Qxa6 {[%clk 0:00:48]}  Bf8 {[%clk 0:00:35]} 30. Qa8 {[%clk 0:00:44]}  Nb6 {[%clk 0:00:32]} 31. Qd8 {[%clk 0:00:44]}  Nd7 {[%clk 0:00:28]} 32. Nc5 {[%clk 0:00:45]}  Nxc5 {[%clk 0:00:21]} 33. dxc5 {[%clk 0:00:46]}  Qe7 {[%clk 0:00:21]} 34. Qxd5+ {[%clk 0:00:45]}  Kh8 {[%clk 0:00:20]} 35. Qa8 {[%clk 0:00:35]}  Kg8 {[%clk 0:00:19]} 36. c6 {[%clk 0:00:28]}  Qe1+ {[%clk 0:00:18]} 37. Kh2 {[%clk 0:00:29]}  Qe5+ {[%clk 0:00:18]} 38. g3 {[%clk 0:00:29]}  Qc5 {[%clk 0:00:16]} 39. Qxf8+ {[%clk 0:00:28]}  Qxf8 {[%clk 0:00:16]} 40. Bxf8 {[%clk 0:00:29]}  Kxf8 {[%clk 0:00:17]} 1-0


[Site "https://www.chess.com"]

[Event "Titled Tuesday Blitz March 28 Early 2023"]
[White "Dominguez Perez, Leinier"]
[Black "Perez Gormaz, Matias"]
[WhiteFideId "3503240"]
[BlackFideId "3406342"]
[WhiteElo "2647"]
[BlackElo "2362"]
[Result "0-1"]
[Round "02"]
[TimeControl "180+2"]
[Date "2023.03.28"]
[WhiteClock "0:00:01"]
[BlackClock "0:00:08"]

1. d4 {[%clk 0:03:00]}  d5 {[%clk 0:02:59]} 2. Nf3 {[%clk 0:03:01]}  e6 {[%clk 0:02:59]} 3. e3 {[%clk 0:03:01]}  Nf6 {[%clk 0:02:58]} 4. Bd3 {[%clk 0:03:01]}  a6 {[%clk 0:02:57]} 5. O-O {[%clk 0:03:00]}  b6 {[%clk 0:02:58]} 6. b3 {[%clk 0:03:00]}  Bb7 {[%clk 0:02:58]} 7. c4 {[%clk 0:03:00]}  Nbd7 {[%clk 0:02:58]} 8. Qe2 {[%clk 0:02:58]}  Bd6 {[%clk 0:02:56]} 9. cxd5 {[%clk 0:02:59]}  exd5 {[%clk 0:02:56]} 10. Ba3 {[%clk 0:02:59]}  c5 {[%clk 0:02:53]} 11. Nc3 {[%clk 0:02:54]}  O-O {[%clk 0:02:52]} 12. Rfd1 {[%clk 0:02:53]}  Qe7 {[%clk 0:02:52]} 13. Rac1 {[%clk 0:02:47]}  Rfc8 {[%clk 0:02:48]} 14. dxc5 {[%clk 0:02:24]}  bxc5 {[%clk 0:02:46]} 15. Bf5 {[%clk 0:02:23]}  Rc7 {[%clk 0:02:25]} 16. Na4 {[%clk 0:01:59]}  Bc6 {[%clk 0:02:00]} 17. Nc3 {[%clk 0:01:50]}  Bb7 {[%clk 0:01:59]} 18. Bb2 {[%clk 0:01:49]}  Re8 {[%clk 0:01:56]} 19. Rd2 {[%clk 0:01:29]}  Rcc8 {[%clk 0:01:34]} 20. Na4 {[%clk 0:01:21]}  d4 {[%clk 0:01:21]} 21. Qd1 {[%clk 0:01:04]}  Ne5 {[%clk 0:00:31]} 22. Ne1 {[%clk 0:01:03]}  Rcd8 {[%clk 0:00:12]} 23. exd4 {[%clk 0:01:03]}  cxd4 {[%clk 0:00:06]} 24. Rxd4 {[%clk 0:01:03]}  h5 {[%clk 0:00:05]} 25. h3 {[%clk 0:00:51]}  Ng6 {[%clk 0:00:05]} 26. Nd3 {[%clk 0:00:32]}  Bb8 {[%clk 0:00:06]} 27. Qd2 {[%clk 0:00:21]}  Rxd4 {[%clk 0:00:05]} 28. Bxd4 {[%clk 0:00:20]}  Qd6 {[%clk 0:00:06]} 29. Ne5 {[%clk 0:00:05]}  Nxe5 {[%clk 0:00:05]} 30. f4 {[%clk 0:00:04]}  Nc6 {[%clk 0:00:03]} 31. Bc3 {[%clk 0:00:02]}  Qxf4 {[%clk 0:00:04]} 32. Qxf4 {[%clk 0:00:02]}  Bxf4 {[%clk 0:00:05]} 33. Rd1 {[%clk 0:00:02]}  Be3+ {[%clk 0:00:06]} 34. Kh1 {[%clk 0:00:02]}  Rd8 {[%clk 0:00:06]} 35. Rxd8+ {[%clk 0:00:02]}  Nxd8 {[%clk 0:00:07]} 36. Bb4 {[%clk 0:00:01]}  Ne6 {[%clk 0:00:08]} 0-1


[Site "https://www.chess.com"]

[Event "Titled Tuesday Blitz March 28 Early 2023"]
[White "Makarian, Rudik"]
[Black "Aaditya Dhingra"]
[WhiteFideId "44105681"]
[BlackFideId "25678191"]
[WhiteElo "2436"]
[BlackElo "2083"]
[Result "1-0"]
[Round "02"]
[TimeControl "180+2"]
[Date "2023.03.28"]
[WhiteClock "0:01:30"]
[BlackClock "0:01:45"]

1. d4 {[%clk 0:03:00]}  d5 {[%clk 0:02:58]} 2. Nf3 {[%clk 0:03:00]}  Nf6 {[%clk 0:02:58]} 3. c4 {[%clk 0:03:01]}  e6 {[%clk 0:02:58]} 4. Nc3 {[%clk 0:03:02]}  c6 {[%clk 0:02:58]} 5. Bg5 {[%clk 0:03:01]}  h6 {[%clk 0:02:58]} 6. Bxf6 {[%clk 0:03:01]}  Qxf6 {[%clk 0:02:58]} 7. a3 {[%clk 0:02:51]}  g6 {[%clk 0:02:58]} 8. e4 {[%clk 0:02:51]}  Qd8 {[%clk 0:02:50]} 9. cxd5 {[%clk 0:02:39]}  cxd5 {[%clk 0:02:46]} 10. exd5 {[%clk 0:02:39]}  exd5 {[%clk 0:02:45]} 11. Bb5+ {[%clk 0:02:40]}  Bd7 {[%clk 0:02:43]} 12. Qe2+ {[%clk 0:02:35]}  Qe7 {[%clk 0:02:23]} 13. Ne5 {[%clk 0:02:29]}  Qe6 {[%clk 0:01:53]} 14. Nxd5 {[%clk 0:02:15]}  Qxd5 {[%clk 0:01:47]} 15. Nxd7+ {[%clk 0:01:41]}  Kd8 {[%clk 0:01:45]} 16. Ne5 {[%clk 0:01:30]} 1-0


[Site "https://www.chess.com"]

[Event "Titled Tuesday Blitz March 28 Early 2023"]
[White "Bacrot, Etienne"]
[Black "The_Sherman_Variation"]
[WhiteFideId "605506"]
[WhiteElo "2663"]
[BlackElo "2630"]
[Result "1-0"]
[Round "02"]
[TimeControl "180+2"]
[Date "2023.03.28"]
[WhiteClock "0:00:22"]
[BlackClock "0:00:19"]

1. e4 {[%clk 0:03:00]}  b6 {[%clk 0:02:58]} 2. d4 {[%clk 0:03:00]}  g6 {[%clk 0:02:59]} 3. h4 {[%clk 0:03:00]}  h5 {[%clk 0:02:58]} 4. Bd3 {[%clk 0:02:59]}  Bg7 {[%clk 0:02:58]} 5. c3 {[%clk 0:02:59]}  Bb7 {[%clk 0:02:59]} 6. Bg5 {[%clk 0:02:58]}  d6 {[%clk 0:02:58]} 7. Nd2 {[%clk 0:02:57]}  Nd7 {[%clk 0:02:58]} 8. f4 {[%clk 0:02:57]}  Ngf6 {[%clk 0:02:58]} 9. Ngf3 {[%clk 0:02:56]}  Ng4 {[%clk 0:02:56]} 10. e5 {[%clk 0:02:53]}  dxe5 {[%clk 0:02:47]} 11. fxe5 {[%clk 0:02:53]}  Ndxe5 {[%clk 0:02:45]} 12. Be4 {[%clk 0:02:46]}  Nxf3+ {[%clk 0:02:41]} 13. Qxf3 {[%clk 0:02:41]}  Bxe4 {[%clk 0:02:40]} 14. Nxe4 {[%clk 0:02:41]}  O-O {[%clk 0:02:39]} 15. O-O-O {[%clk 0:02:39]}  f6 {[%clk 0:02:31]} 16. Bf4 {[%clk 0:02:36]}  Qc8 {[%clk 0:02:26]} 17. Qe2 {[%clk 0:02:27]}  a5 {[%clk 0:02:21]} 18. Rhe1 {[%clk 0:02:26]}  a4 {[%clk 0:02:20]} 19. a3 {[%clk 0:02:24]}  Qe6 {[%clk 0:02:14]} 20. d5 {[%clk 0:02:20]}  Qf5 {[%clk 0:02:14]} 21. Bxc7 {[%clk 0:02:18]}  Rfc8 {[%clk 0:02:09]} 22. Bg3 {[%clk 0:01:24]}  b5 {[%clk 0:01:41]} 23. Kb1 {[%clk 0:01:23]}  b4 {[%clk 0:01:37]} 24. cxb4 {[%clk 0:01:22]}  Qd7 {[%clk 0:01:26]} 25. Nc5 {[%clk 0:01:19]}  Qf5+ {[%clk 0:01:18]} 26. Qe4 {[%clk 0:01:17]}  Qxe4+ {[%clk 0:01:10]} 27. Rxe4 {[%clk 0:01:17]}  Ra7 {[%clk 0:01:11]} 28. Rc1 {[%clk 0:01:04]}  f5 {[%clk 0:01:08]} 29. Re2 {[%clk 0:01:02]}  Bh6 {[%clk 0:01:04]} 30. Rc3 {[%clk 0:00:57]}  Bg7 {[%clk 0:01:03]} 31. Rd3 {[%clk 0:00:57]}  Kf7 {[%clk 0:00:52]} 32. Bf4 {[%clk 0:00:54]}  Bf6 {[%clk 0:00:51]} 33. g3 {[%clk 0:00:54]}  Rd8 {[%clk 0:00:46]} 34. b5 {[%clk 0:00:47]}  Ra5 {[%clk 0:00:45]} 35. Bc7 {[%clk 0:00:37]}  Rxb5 {[%clk 0:00:43]} 36. Bxd8 {[%clk 0:00:37]}  Rxc5 {[%clk 0:00:43]} 37. d6 {[%clk 0:00:35]}  exd6 {[%clk 0:00:32]} 38. Bxf6 {[%clk 0:00:31]}  Nxf6 {[%clk 0:00:33]} 39. Rxd6 {[%clk 0:00:31]}  Ne4 {[%clk 0:00:34]} 40. Rd3 {[%clk 0:00:31]}  Rc7 {[%clk 0:00:31]} 41. Rc2 {[%clk 0:00:31]}  Rb7 {[%clk 0:00:31]} 42. Rc4 {[%clk 0:00:29]}  Rb3 {[%clk 0:00:27]} 43. Rxb3 {[%clk 0:00:25]}  axb3 {[%clk 0:00:28]} 44. Rc7+ {[%clk 0:00:24]}  Kf6 {[%clk 0:00:27]} 45. a4 {[%clk 0:00:25]}  Nxg3 {[%clk 0:00:26]} 46. a5 {[%clk 0:00:25]}  f4 {[%clk 0:00:25]} 47. a6 {[%clk 0:00:24]}  f3 {[%clk 0:00:24]} 48. Rc3 {[%clk 0:00:24]}  f2 {[%clk 0:00:20]} 49. Rf3+ {[%clk 0:00:24]}  Kg7 {[%clk 0:00:19]} 50. Rxf2 {[%clk 0:00:25]}  Ne4 {[%clk 0:00:19]} 51. Rh2 {[%clk 0:00:22]} 1-0


[Site "https://www.chess.com"]

[Event "Titled Tuesday Blitz March 28 Early 2023"]
[White "Ingebretsen, Jens E"]
[Black "Xu, Xiangyu"]
[WhiteFideId "1522965"]
[BlackFideId "8608288"]
[WhiteElo "2213"]
[BlackElo "2477"]
[Result "0-1"]
[Round "02"]
[TimeControl "180+2"]
[Date "2023.03.28"]
[WhiteClock "0:00:19"]
[BlackClock "0:02:02"]

1. c4 {[%clk 0:02:56]}  Nf6 {[%clk 0:02:59]} 2. Nc3 {[%clk 0:02:56]}  e5 {[%clk 0:03:00]} 3. Nf3 {[%clk 0:02:56]}  Nc6 {[%clk 0:03:00]} 4. g3 {[%clk 0:02:57]}  Bb4 {[%clk 0:03:00]} 5. Bg2 {[%clk 0:02:57]}  O-O {[%clk 0:03:00]} 6. O-O {[%clk 0:02:57]}  e4 {[%clk 0:02:59]} 7. Ng5 {[%clk 0:02:57]}  Bxc3 {[%clk 0:02:59]} 8. bxc3 {[%clk 0:02:58]}  Re8 {[%clk 0:02:58]} 9. d3 {[%clk 0:02:55]}  exd3 {[%clk 0:02:57]} 10. exd3 {[%clk 0:02:55]}  h6 {[%clk 0:02:56]} 11. Ne4 {[%clk 0:02:54]}  b6 {[%clk 0:02:51]} 12. a4 {[%clk 0:02:45]}  Bb7 {[%clk 0:02:50]} 13. Bf4 {[%clk 0:02:19]}  d6 {[%clk 0:02:33]} 14. Re1 {[%clk 0:02:07]}  Na5 {[%clk 0:02:33]} 15. Nxf6+ {[%clk 0:01:21]}  Qxf6 {[%clk 0:02:34]} 16. Bxb7 {[%clk 0:01:20]}  Nxb7 {[%clk 0:02:34]} 17. d4 {[%clk 0:01:20]}  Na5 {[%clk 0:02:22]} 18. Qd3 {[%clk 0:01:19]}  Re6 {[%clk 0:02:13]} 19. Re3 {[%clk 0:00:55]}  g5 {[%clk 0:02:07]} 20. Rxe6 {[%clk 0:00:46]}  Qxe6 {[%clk 0:02:08]} 21. d5 {[%clk 0:00:45]}  Qg6 {[%clk 0:02:07]} 22. Qxg6+ {[%clk 0:00:40]}  fxg6 {[%clk 0:02:08]} 23. Be3 {[%clk 0:00:38]}  Nxc4 {[%clk 0:02:09]} 24. Bd4 {[%clk 0:00:38]}  Re8 {[%clk 0:02:09]} 25. Kf1 {[%clk 0:00:38]}  Kf7 {[%clk 0:02:09]} 26. h3 {[%clk 0:00:33]}  h5 {[%clk 0:02:08]} 27. Rd1 {[%clk 0:00:30]}  a6 {[%clk 0:02:04]} 28. Rd3 {[%clk 0:00:31]}  g4 {[%clk 0:02:03]} 29. hxg4 {[%clk 0:00:30]}  hxg4 {[%clk 0:02:04]} 30. f3 {[%clk 0:00:28]}  Nb2 {[%clk 0:02:00]} 31. Rd2 {[%clk 0:00:25]}  Nxa4 {[%clk 0:02:00]} 32. fxg4 {[%clk 0:00:25]}  Re4 {[%clk 0:02:00]} 33. Ra2 {[%clk 0:00:24]}  b5 {[%clk 0:01:58]} 34. Rf2+ {[%clk 0:00:23]}  Ke8 {[%clk 0:01:58]} 35. g5 {[%clk 0:00:20]}  b4 {[%clk 0:01:58]} 36. Ra2 {[%clk 0:00:17]}  Nxc3 {[%clk 0:01:58]} 37. Bxc3 {[%clk 0:00:17]}  bxc3 {[%clk 0:01:59]} 38. Rxa6 {[%clk 0:00:16]}  Rc4 {[%clk 0:01:59]} 39. Ra1 {[%clk 0:00:16]}  c2 {[%clk 0:01:59]} 40. Rc1 {[%clk 0:00:17]}  Kd7 {[%clk 0:01:58]} 41. Ke2 {[%clk 0:00:17]}  Rc5 {[%clk 0:01:59]} 42. Ke3 {[%clk 0:00:17]}  Rxd5 {[%clk 0:01:59]} 43. Rxc2 {[%clk 0:00:17]}  Rxg5 {[%clk 0:02:00]} 44. Kf4 {[%clk 0:00:17]}  Rf5+ {[%clk 0:02:00]} 45. Kg4 {[%clk 0:00:18]}  c5 {[%clk 0:02:01]} 46. Ra2 {[%clk 0:00:18]}  c4 {[%clk 0:02:01]} 47. Ra7+ {[%clk 0:00:18]}  Kc6 {[%clk 0:02:02]} 48. Rg7 {[%clk 0:00:18]}  c3 {[%clk 0:02:02]} 49. Rxg6 {[%clk 0:00:19]}  Rc5 {[%clk 0:02:02]} 0-1


[Site "https://www.chess.com"]

[Event "Titled Tuesday Blitz March 28 Early 2023"]
[White "Drygalov, Andrey"]
[Black "Sochacki, Christophe"]
[WhiteFideId "24171735"]
[BlackFideId "662569"]
[WhiteElo "2471"]
[BlackElo "2474"]
[Result "1-0"]
[Round "02"]
[TimeControl "180+2"]
[Date "2023.03.28"]
[WhiteClock "0:00:51"]
[BlackClock "0:00:01"]

1. e4 {[%clk 0:03:00]}  c6 {[%clk 0:02:55]} 2. Nf3 {[%clk 0:03:00]}  d5 {[%clk 0:02:56]} 3. d3 {[%clk 0:03:01]}  g6 {[%clk 0:02:48]} 4. e5 {[%clk 0:02:59]}  Bg7 {[%clk 0:02:48]} 5. d4 {[%clk 0:02:59]}  c5 {[%clk 0:02:44]} 6. c3 {[%clk 0:02:59]}  Nc6 {[%clk 0:02:44]} 7. h3 {[%clk 0:02:58]}  Nh6 {[%clk 0:02:26]} 8. dxc5 {[%clk 0:02:43]}  f6 {[%clk 0:01:43]} 9. exf6 {[%clk 0:02:41]}  exf6 {[%clk 0:01:44]} 10. Be2 {[%clk 0:02:39]}  O-O {[%clk 0:01:42]} 11. O-O {[%clk 0:02:39]}  Nf7 {[%clk 0:01:36]} 12. Na3 {[%clk 0:02:39]}  Nfe5 {[%clk 0:01:34]} 13. Nb5 {[%clk 0:02:39]}  b6 {[%clk 0:01:21]} 14. Nd6 {[%clk 0:02:27]}  Be6 {[%clk 0:01:13]} 15. Nd4 {[%clk 0:02:25]}  Nxd4 {[%clk 0:01:08]} 16. cxd4 {[%clk 0:02:24]}  Nd7 {[%clk 0:01:02]} 17. Be3 {[%clk 0:02:19]}  bxc5 {[%clk 0:00:59]} 18. dxc5 {[%clk 0:02:20]}  Qc7 {[%clk 0:00:55]} 19. Rc1 {[%clk 0:02:18]}  Rab8 {[%clk 0:00:54]} 20. Nb5 {[%clk 0:02:11]}  Qa5 {[%clk 0:00:52]} 21. c6 {[%clk 0:02:11]}  Ne5 {[%clk 0:00:33]} 22. Nd4 {[%clk 0:01:37]}  Bf7 {[%clk 0:00:32]} 23. b3 {[%clk 0:01:37]}  Rfc8 {[%clk 0:00:30]} 24. f4 {[%clk 0:01:33]}  Qxa2 {[%clk 0:00:26]} 25. fxe5 {[%clk 0:01:14]}  fxe5 {[%clk 0:00:27]} 26. Ra1 {[%clk 0:01:11]}  Qb2 {[%clk 0:00:25]} 27. Rxa7 {[%clk 0:01:11]}  Rf8 {[%clk 0:00:13]} 28. Nb5 {[%clk 0:01:01]}  Rbc8 {[%clk 0:00:08]} 29. Raxf7 {[%clk 0:00:55]}  Rxf7 {[%clk 0:00:09]} 30. Rxf7 {[%clk 0:00:55]}  Kxf7 {[%clk 0:00:03]} 31. Qxd5+ {[%clk 0:00:52]}  Ke7 {[%clk 0:00:01]} 32. Bc5+ {[%clk 0:00:51]} 1-0


[Site "https://www.chess.com"]